[Event "4NCL Div 1 2024-25"]
[Site "England"]
[Date "2024.11.23"]
[Round "1.17"]
[White "Slaby, Jerzy"]
[Black "Rendle, Thomas E"]
[Result "0-1"]
[Annotator "TA"]
[ECO "A09"]
[WhiteElo "2468"]
[BlackElo "2383"]
[PlyCount "58"]
[EventDate "2024.11.23"]
[EventType "team-tourn"]
[EventCountry "ENG"]
[SourceTitle "playchess.com"]
[Source "ChessBase"]
[SourceQuality "1"]
[TimeControl "40/6000+30:3000+30"]

{[%evp 9,58,-7,-12,0,-10,-23,-12,-6,0,-10,-13,-35,14,12,17,-12,-39,-68,-67,-110,-104,-85,-109,-133,-119,-126,0,0,-4,0,0,-8,-15,-16,-21,-395,-411,-398,-431,-475,-475,-681,-668,-651,-649,-649,-639,-1071,-1066,-1070,-1066]} 1. Nf3 {[%emt 0:10:11]} d5 {[%emt 0:10:20]} 2. g3 {[%emt 0:01:19]} g6 {[%emt 0:00:30]} 3. c4 {[%emt 0:02:16]} dxc4 {[%emt 0:03:03]} 4. Na3 {[%emt 0:02:02]} Bg7 {[%emt 0:16:12]} 5. Nxc4 {[%emt 0:00:42]} Nc6 {[%emt 0:00:21]} 6. Bg2 {[%emt 0:01:44]} e5 {[%emt 0:00:30]} 7. d3 {[%emt 0:02:05] [#]} e4 $1 {[%emt 0:09:34]} 8. dxe4 {[%emt 0:18:15] Hoping for Qb3. The position is equal.} Qxd1+ {[%emt 0:00:42]} 9. Kxd1 {[%emt 0:00:02]} Nf6 {[%emt 0:00:27]} 10. Nfd2 {[%emt 0:10:06]} Ng4 {[%emt 0:14:29]} (10... Be6 $15) 11. Ke1 $11 {[%emt 0:01:42]} Nb4 {[%emt 0:02:21]} 12. Kf1 {[%emt 0:03:12]} Be6 $1 {[%emt 0:03:02][%mdl 1024] Black has compensation.} 13. h3 {[%emt 0:16:33] [#]} O-O-O $1 {[%emt 0:01:29] White must now prevent ...Bxc4.} 14. Na3 {[%emt 0:04:53]} (14. hxg4 Nc2) 14... Ne5 {[%emt 0:09:39] Black has more active pieces. The white rooks are passive.} 15. f4 {[%emt 0:00:28]} Nec6 {[%emt 0:00:55][%cal Od8d2]} 16. Kf2 {[%emt 0:04:16]} Nd4 {[%emt 0:04:17][%cal Od4c2] Inhibits Nb3.} 17. Nb3 {[%emt 0:03:54]} Ndc2 {[%emt 0:08:11]} (17... Nxb3 $17 18. axb3 Bd4+ (18... Bxb3 19. e5 $17) 19. e3 Nd3+ 20. Kf3 Nxc1 (20... Bxb2 21. Bxb2 Nxb2 22. Nb5 $16) 21. exd4 Nxb3) 18. Nxc2 {[%emt 0:01:03]} Nxc2 {[%emt 0:00:02]} 19. Rb1 {[%emt 0:00:03]} a5 {[%emt 0:00:59] aiming for ...a4.} 20. f5 {[%emt 0:03:10]} gxf5 {[%emt 0:01:27]} 21. Bg5 {[%emt 0:00:16]} (21. exf5 {simplifies} Bxb3 22. axb3 Bd4+ 23. e3) 21... a4 $36 {[%emt 0:02:06][%mdl 2048] Black has good play.} 22. Na5 {[%emt 0:04:01][%mdl 8192] [#] This costs White the game.} (22. Bxd8 $2 axb3 23. exf5 Bd4+ (23... Bxf5 $2 24. Bg5 $19) (23... bxa2 $2 24. fxe6 axb1=Q 25. Rxb1 $19) 24. Kf3 Bd5+ (24... Bxf5 $2 25. axb3 Rxd8 26. h4 $19) (24... bxa2 $2 25. fxe6 axb1=R 26. Rxb1 $19) 25. e4 bxa2 $19 (25... Rxd8 26. exd5 Rxd5 27. axb3 $11)) (22. exf5 $1 $11 Bxf5 (22... axb3 23. fxe6 Rdg8 24. Bf4 $14) 23. Na5 (23. Bxd8 $2 axb3 24. Bg5 bxa2 $19)) 22... Bd4+ $1 $19 {[%emt 0:02:22]} 23. e3 {[%emt 0:00:39] [#]} Bb6 {[%emt 0:02:23]} 24. Bxd8 {[%emt 0:01:33] Black is clearly winning.} Rxd8 {[%emt 0:00:41]} 25. exf5 {[%emt 0:02:52]} (25. Rbd1 $142 Rxd1 (25... Bxa5 $2 26. Rxd8+ Kxd8 27. Rc1 $19) (25... Bxe3+ 26. Ke2 $16) 26. Rxd1 Nxe3 (26... Bxa5 $2 27. exf5 Bxa2 28. Be4 $19) 27. Rd3 Nxg2+ (27... Bxa2 28. Rxe3 Bxa5 29. Ke2 $17) 28. Kxg2 Bxa5 29. g4) 25... Rd2+ {[%emt 0:01:55]} (25... Bxe3+ 26. Kf1 Bxa2 27. Bxb7+ Kb8 28. Nc6+ Kxb7 29. Nxd8+ $11) 26. Kf3 {[%emt 0:00:08]} Bd5+ {[%emt 0:03:15]} (26... Bxf5 $2 {too greedy.} 27. Nc4 Bxe3 28. Nxd2 (28. Nxe3 Nxe3 29. Kxe3 Rxg2 $11) 28... Bxd2 29. Rbd1 $18) 27. e4 {[%emt 0:00:02]} Bxa2 {[%emt 0:00:14] ...Rf2+ is the strong threat.} 28. Rbd1 {[%emt 0:02:21]} Rf2+ {[%emt 0:00:47]} 29. Kg4 {[%emt 0:00:02]} Ne3+ {[%emt 0:00:09] Weighted Error Value: White=0.85/Black=0.08 (flawless) .  Loses game:     	White=1     	---        Mistake:       	White=1     	Black=2      Inaccurate:     	White=3     	---        OK:         	White=3     	Black=10     Best:        	White=4     	Black=1      Strong:       	---       	Black=2} 0-1

[Event "4NCL Div 1 2024-25"]
[Site "England"]
[Date "2024.11.23"]
[Round "1.19"]
[White "Makkar, Rajat"]
[Black "Foisor, Mihaela-Veronica"]
[Result "1-0"]
[Annotator "TA"]
[ECO "D24"]
[WhiteElo "2432"]
[BlackElo "2156"]
[PlyCount "53"]
[EventDate "2024.11.23"]
[EventType "team-tourn"]
[EventCountry "ENG"]
[SourceTitle "playchess.com"]
[Source "ChessBase"]
[SourceQuality "1"]
[TimeControl "40/6000+30:3000+30"]

{[%evp 17,53,42,55,16,18,10,14,0,0,0,0,0,0,0,0,2,16,7,54,48,73,61,62,32,101,86,737,717,1174,1233,1238,1180,1183,1099,1129,727,684,645]} 1. d4 {[%emt 0:10:12]} d5 {[%emt 0:10:06]} 2. c4 {[%emt 0:00:10]} e6 {[%emt 0:00:14]} 3. Nf3 {[%emt 0:00:22]} Nf6 {[%emt 0:00:07]} 4. Nc3 {[%emt 0:00:04]} dxc4 {[%emt 0:00:16]} 5. e4 {[%emt 0:00:15][%cal Be2e4,Be4e5][%mdl 32]} c5 {[%emt 0:01:37]} 6. d5 {[%emt 0:02:25]} exd5 {[%emt 0:00:07]} 7. e5 {[%emt 0:07:54]} Nfd7 {[%emt 0:01:29]} 8. Qxd5 {[%emt 0:06:32]} Nb6 {[%emt 0:01:05]} 9. Qxd8+ {[%emt 0:01:08]} Kxd8 {[%emt 0:00:02]} 10. Bg5+ {[%emt 0:00:39]} Be7 {[%emt 0:02:27]} 11. O-O-O+ {[%emt 0:01:19]} Bd7 {[%emt 0:08:59]} 12. Nb5 {[%emt 0:07:19] The position is equal.} Nc6 {[%emt 0:02:01]} 13. Nd6 {[%emt 0:03:24]} Kc7 {[%emt 0:01:00]} 14. Bxe7 {[%emt 0:13:12]} Nxe7 {[%emt 0:00:07]} 15. Nxf7 {[%emt 0:02:08]} Rhf8 {[%emt 0:00:18]} 16. Nd6 {[%emt 0:00:10]} Be6 {[%emt 0:06:51]} 17. Ng5 {[%emt 0:04:24][%csl LRe6,LRh7]} Bg8 (17... Bd5 $11 {is superior.}) 18. g3 $36 {[%emt 0:08:13][%mdl 2048] White fights for an advantage.} (18. Be2 {is more complex.} Rxf2 19. Bf3 Na4 20. Nde4) 18... Rxf2 {[%emt 0:27:44]} 19. Nge4 {[%emt 0:00:32][%csl LRc5,LRf2][%cal Bg5e4,Be4c3,Bc3b5][%mdl 32]} Rff8 {[%emt 0:00:10]} 20. Bh3 {[%emt 0:05:15][%mdl 1024] White has compensation.} (20. Bg2 $5) 20... Kc6 {[%emt 0:08:25]} (20... a6 $14) 21. Nc3 $16 {[%emt 0:07:19] White has more active pieces.} Rf2 {[%emt 0:10:43][%mdl 8192] [#] Dodges Bg2+. This costs Black the game.} (21... Bd5 $16) 22. Nde4 $1 $18 {[%emt 0:02:51] aiming for Rd6+. White is clearly winning.} Rf5 {[%emt 0:04:47]} 23. Rd6+ {[%emt 0:01:12]} Kc7 {[%emt 0:00:04]} 24. Nb5+ {[%emt 0:00:14]} Kc8 {[%emt 0:00:05]} 25. Rhd1 {[%emt 0:00:28][%csl Gd1][%cal Rd6d8]} Nbd5 {[%emt 0:01:28]} 26. Bxf5+ {[%emt 0:00:19]} Nxf5 {[%emt 0:23:18]} 27. R6xd5 {[%emt 0:00:11] Weighted Error Value: White=0.11 (very precise) /Black=0.20 (precise) .  Loses game:     	---       	Black=1      Mistake:       	---       	Black=2      Inaccurate:     	White=1     	Black=1      OK:         	White=6     	Black=5      Best:        	---       	Black=2      Strong:       	White=1     	---} 1-0

[Event "4NCL Div 1 2024-25"]
[Site "England"]
[Date "2024.11.23"]
[Round "1.20"]
[White "Lentzos, Ioanis"]
[Black "Roberson, Peter T"]
[Result "0-1"]
[Annotator "TA"]
[ECO "B13"]
[WhiteElo "2126"]
[BlackElo "2432"]
[PlyCount "110"]
[EventDate "2024.11.23"]
[EventType "team-tourn"]
[EventCountry "ENG"]
[SourceTitle "playchess.com"]
[Source "ChessBase"]
[SourceQuality "1"]
[TimeControl "40/6000+30:3000+30"]

{[%evp 13,110,12,8,-2,0,-6,25,4,29,-4,16,0,0,0,29,25,20,22,26,18,14,20,55,0,19,33,8,-20,-39,-90,-100,-120,-135,-218,-66,-60,-71,-73,-57,-131,-125,-156,-160,-189,-152,-187,-179,-195,-185,-245,-171,-174,-177,-170,-166,-225,-168,-186,-87,-168,-71,-72,-4,-4,-14,-10,0,-136,0,-68,0,0,0,0,0,-122,-122,-127,-143,-161,-128,-1076,-313,-468,-460,-29976,-29977,-29977,-29978,-29978,-29979,-29979,-29980,-29980,-29981,-29981,-29982,-29982,-29983]} 1. c4 {[%emt 0:10:03]} c5 {[%emt 0:10:09]} 2. Nf3 {[%emt 0:00:22]} Nc6 {[%emt 0:01:41]} 3. e3 {[%emt 0:00:34]} Nf6 {[%emt 0:03:58]} 4. Nc3 {[%emt 0:00:06]} a6 {[%emt 0:04:33]} 5. d4 {[%emt 0:07:22]} cxd4 {[%emt 0:00:19]} 6. exd4 {[%emt 0:00:07]} d5 {[%emt 0:00:05]} 7. cxd5 {[%emt 0:00:35]} Nxd5 {[%emt 0:00:07]} 8. Qb3 {[%emt 0:03:53] B13: Caro-Kann: Exchange Variation and Panov-Botvinnik Attack.} e6 {[%emt 0:06:50]} 9. Bd3 {[%emt 0:07:10]} Be7 {[%emt 0:05:27]} 10. O-O {[%emt 0:03:28]} O-O {[%emt 0:00:12]} 11. Nxd5 {[%emt 0:11:35]} exd5 {[%emt 0:08:33]} 12. Be3 {[%emt 0:06:54]} Bf6 $146 {[%emt 0:07:10]} ({Predecessor:} 12... Bg4 13. Ne5 Nxe5 14. dxe5 b5 15. h3 Bh5 16. f4 f6 17. Qc2 h6 18. Bg6 Bxg6 19. Qxg6 {1-0 Decuigniere,T (2292)-Piliczewski,B (1938) Titled Tuesday intern op 01st Feb-A blitz 2022 (4)}) 13. h3 {[%emt 0:04:18]} Qd6 {[%emt 0:09:15]} 14. Rac1 {[%emt 0:02:04]} Rb8 {[%emt 0:04:33]} 15. Rc5 {[%emt 0:16:25]} Be6 {[%emt 0:06:19]} 16. Rfc1 {[%emt 0:03:16][%cal Od3a6]} Qd7 {[%emt 0:08:49]} 17. a3 {[%emt 0:12:51]} h6 {[%emt 0:10:49]} 18. Bf4 {[%emt 0:11:09]} (18. Bc2 $14) 18... Nxd4 {[%emt 0:08:48]} 19. Nxd4 {[%emt 0:00:50]} Bxd4 {[%emt 0:00:02]} 20. Rc7 {[%emt 0:00:10]} (20. R5c2 $5) 20... Qd8 {[%emt 0:00:10]} 21. Bb1 {[%emt 0:02:34]} (21. Bh7+ $15 Kxh7 22. Qd3+ (22. Rxb7 $2 Rxb7 23. Qxb7 Qf6 $19) 22... Kg8 23. Qxd4) 21... Qf6 $17 {[%emt 0:02:31][%csl LRb2,LRf4]} 22. Qd3 {[%emt 0:00:45]} g6 {[%emt 0:02:05]} (22... Qxf4 23. Qh7#) 23. Bxh6 {[%emt 0:00:14]} (23. Qg3 $17) 23... Rfc8 $2 {[%emt 0:05:37]} (23... Bxf2+ 24. Kh2 Qe5+ 25. Kh1 $17) (23... Qxf2+ $19 24. Kh1 Rfc8) 24. Rxc8+ $15 {[%emt 0:04:40]} Rxc8 {[%emt 0:00:07]} 25. Rxc8+ {[%emt 0:00:19]} Bxc8 {[%emt 0:00:02]} 26. Qd2 {[%emt 0:00:13]} (26. Qe2 $15) 26... Bxb2 $17 {[%emt 0:02:46]} 27. Qxd5 {[%emt 0:00:30]} Bxa3 {[%emt 0:00:30]} 28. Bg5 {[%emt 0:00:23]} Qd6 {[%emt 0:00:57]} 29. Qe4 {[%emt 0:00:55]} Qe6 {[%emt 0:00:50]} 30. Qd3 {[%emt 0:00:45]} Be7 {[%emt 0:01:00]} 31. Be3 {[%emt 0:00:39]} (31. Bd2 {is a better defense.}) 31... Bd7 {[%emt 0:00:47]} 32. Ba2 {[%emt 0:00:11]} Qd6 {[%emt 0:00:33]} 33. Qe4 {[%emt 0:00:44]} Bc6 {[%emt 0:00:12]} 34. Qg4 {[%emt 0:00:03] Repels Qd1+} (34. Qc4 {was necessary.} Qf6 35. Bf4) 34... Kg7 {[%emt 0:01:00]} 35. h4 {[%emt 0:00:24]} Bd7 {[%emt 0:00:20]} (35... Qd7 $19 {has better winning chances.} 36. Bd4+ Bf6 37. Bxf6+ Kxf6 38. Qf4+ Qf5 39. Qd4+ Qe5 (39... Ke7 $2 40. f3 $19) 40. Qxe5+ Kxe5 41. Bxf7 a5) 36. Bd4+ {[%emt 0:00:24]} (36. Qf3 $17 Bf6 (36... Bxh4 37. Qxf7+ Kh8 38. Qg8#) 37. Qxb7) 36... Kg8 {[%emt 0:00:29]} (36... Kh7 $1 $19 {and Black stays clearly on top.} 37. Qe4 Bc6) 37. Qf3 $17 {[%emt 0:00:12][%csl Ga2,LRb7,LRf7][%cal Rf3f7]} Be6 {[%emt 0:00:34]} ({Not} 37... Qxd4 38. Qxf7+ Kh8 39. Qg8#) (37... Bf5 $1 $17 38. Bd5 Bxh4) 38. Bxe6 $11 {[%emt 0:00:13]} Qxe6 {[%emt 0:00:41]} 39. Qxb7 {[%emt 0:00:09] Strongly threatening Qb8+.} Bf8 {[%emt 0:00:30]} ({Worse is} 39... Bxh4 40. Qb8+) 40. Qa7 {[%emt 0:01:30] [#]} (40. g3 $11 {remains equal.}) 40... Qe4 {[%emt 0:00:31]} (40... Qe1+ $1 $17 41. Kh2 Qe7) 41. Qb6 {[%emt 0:51:02]} (41. g3 $11) 41... Qxh4 {[%emt 0:25:41]} (41... Qe1+ $1 $15 42. Kh2 Qb4) 42. g3 $11 {[%emt 0:00:00]} Qh5 {[%emt 0:01:22]} 43. Qf6 {[%emt 0:00:00]} a5 {[%emt 0:00:34]} 44. Kg2 {[%emt 0:00:00]} (44. Bc3 $11 {keeps the balance.}) 44... a4 $17 {[%emt 0:25:02]} 45. f3 {[%emt 0:00:00] [#]} Qh6 $1 {[%emt 0:00:00]} 46. f4 {[%emt 0:00:00]} a3 {[%emt 0:00:00][%cal Og6g5] aiming for ...g5!} 47. g4 $2 {[%emt 0:00:38][%mdl 8192]} (47. Qe5 $17) 47... a2 $2 {[%emt 0:00:00]} (47... Bg7 48. Qd8+ Kh7 49. Bxg7 Qxg7 (49... Kxg7 $2 50. Qd4+ Kh7 51. Qa4 $19) 50. Qh4+ Kg8 51. Qd8+ Qf8) 48. Be5 {[%emt 0:02:46]} (48. Qe5 $142) 48... g5 $19 {[%emt 0:00:00] ( -> ...Qxf6)} 49. fxg5 {[%emt 0:00:32]} (49. Qd8 $19 gxf4 50. Kf3) 49... Qxf6 {[%emt 0:00:00]} 50. gxf6 {[%emt 0:00:08]} Kh7 {[%emt 0:00:00]} 51. Kf3 {[%emt 0:01:14]} Kg6 {[%emt 0:00:00]} 52. g5 {[%emt 0:00:38]} Ba3 {[%emt 0:00:00]} 53. Ke4 {[%emt 0:00:23]} Bc1 {[%emt 0:00:00]} 54. Kd3 {[%emt 0:00:31]} Bxg5 {[%emt 0:00:00]} 55. Kc2 {[%emt 0:00:07]} Bxf6 {[%emt 0:00:00]} 0-1

[Event "4NCL Div 1 2024-25"]
[Site "England"]
[Date "2024.11.23"]
[Round "1.21"]
[White "Ghasi, Ameet K"]
[Black "Kalavannan, Koby"]
[Result "1-0"]
[Annotator "RC"]
[ECO "B27"]
[WhiteElo "2503"]
[BlackElo "2225"]
[PlyCount "55"]
[EventDate "2024.11.23"]
[EventType "team-tourn"]
[EventCountry "ENG"]
[SourceTitle "playchess.com"]
[Source "ChessBase"]
[SourceQuality "1"]
[TimeControl "40/6000+30:3000+30"]

1. Nf3 {[%emt 0:12:29]} g6 {[%emt 0:10:50]} 2. e4 {[%emt 0:00:17]} c5 {[%emt 0:00:08]} 3. Bc4 {[%emt 0:01:14]} Bg7 {[%emt 0:03:15]} 4. c3 {[%emt 0:02:00]} e6 {[%emt 0:00:55]} 5. d4 {[%emt 0:03:13]} cxd4 {[%emt 0:04:07]} 6. Bb3 {[%emt 0:01:49]} Ne7 {[%emt 0:01:44]} 7. cxd4 {[%emt 0:04:03]} d5 {[%emt 0:01:25]} 8. e5 {[%emt 0:12:18]} b5 {[%emt 0:02:37]} 9. Nc3 {[%emt 0:04:52]} Bd7 {[%emt 0:06:05]} 10. h4 {[%emt 0:06:09]} b4 {[%emt 0:06:22]} 11. Ne2 {[%emt 0:00:47]} h5 {[%emt 0:00:58]} 12. Bg5 {[%emt 0:05:24]} Nbc6 {[%emt 0:12:15]} 13. Rc1 {[%emt 0:11:20]} Qb6 {[%emt 0:00:09]} 14. O-O {[%emt 0:01:08]} Nf5 {[%emt 0:07:47]} 15. Bc2 {[%emt 0:06:42]} Nce7 {[%emt 0:00:28]} 16. Nf4 {[%emt 0:04:23]} Bb5 {[%emt 0:04:38]} 17. Re1 {[%emt 0:01:00]} a5 {[%emt 0:10:44]} 18. Bb1 {[%emt 0:03:01]} O-O {[%emt 0:01:42]} 19. Bxe7 {[%emt 0:08:17]} Nxe7 {[%emt 0:00:01]} 20. Ng5 {[%emt 0:03:25]} Bh6 {[%emt 0:02:06]} 21. Nxh5 {[%emt 0:03:37]} gxh5 {[%emt 0:05:08]} 22. Qxh5 {[%emt 0:00:21]} Kg7 {[%emt 0:00:05]} 23. Re3 {[%emt 0:01:18]} Be8 {[%emt 0:09:26]} 24. Rg3 {[%emt 0:03:15]} Ng6 {[%emt 0:03:17]} 25. Nxf7 {[%emt 0:00:38]} Kxf7 {[%emt 0:01:26]} 26. Qxh6 {[%emt 0:02:29]} Ke7 {[%emt 0:07:32]} 27. Bxg6 {[%emt 0:00:07]} Bf7 {[%emt 0:02:55]} 28. Qg7 {[%emt 0:00:49]} 1-0

[Event "4NCL Div 1 2024-25"]
[Site "England"]
[Date "2024.11.23"]
[Round "1.22"]
[White "Birtwistle, Nigel"]
[Black "Hryshchenko, Kamila"]
[Result "0-1"]
[Annotator "NA RC"]
[ECO "A49"]
[WhiteElo "2041"]
[BlackElo "2138"]
[PlyCount "78"]
[EventDate "2024.11.23"]
[EventType "team-tourn"]
[EventCountry "ENG"]
[SourceTitle "playchess.com"]
[Source "ChessBase"]
[SourceQuality "1"]
[TimeControl "40/6000+30:3000+30"]

1. d4 {[%emt 0:10:04]} d6 {[%emt 0:10:06]} 2. Nf3 {[%emt 0:00:15]} g6 {[%emt 0:00:10]} 3. g3 {[%emt 0:00:31]} Bg7 {[%emt 0:00:06]} 4. Bg2 {[%emt 0:00:07]} Nf6 {[%emt 0:00:07]} 5. O-O {[%emt 0:00:18]} O-O {[%emt 0:00:07]} 6. b3 {[%emt 0:00:55]} Nc6 {[%emt 0:00:14]} 7. Bb2 {[%emt 0:00:51]} a6 {[%emt 0:00:17]} 8. d5 {[%emt 0:01:24]} Nb8 {[%emt 0:00:49]} 9. c4 {[%emt 0:03:05]} c5 {[%emt 0:08:03]} 10. dxc6 {[%emt 0:08:00]} bxc6 {[%emt 0:01:35]} 11. Nc3 {[%emt 0:01:39]} a5 {[%emt 0:00:58]} 12. Nd4 {[%emt 0:11:06]} Qc7 {[%emt 0:00:49]} 13. Qd2 {[%emt 0:03:00]} Bd7 {[%emt 0:03:35]} 14. Rac1 {[%emt 0:01:54]} Na6 {[%emt 0:00:21]} 15. Na4 {[%emt 0:04:14]} Rfd8 {[%emt 0:05:47]} 16. Rfd1 {[%emt 0:07:08]} e5 {[%emt 0:08:08]} 17. Nc2 Bf5 {[%emt 0:12:43]} 18. Bc3 {[%emt 0:12:07]} Nc5 {[%emt 0:04:57]} 19. Nxc5 {[%emt 0:13:14]} dxc5 {[%emt 0:00:10]} 20. Qe1 {[%emt 0:00:52]} Rxd1 {[%emt 0:00:37]} 21. Qxd1 {[%emt 0:00:36]} Bh6 {[%emt 0:04:09]} 22. e3 {[%emt 0:01:21]} Ne4 {[%emt 0:01:34]} 23. Be1 {[%emt 0:05:39]} Nd6 {[%emt 0:05:08]} 24. Qe2 {[%emt 0:02:21]} e4 {[%emt 0:01:46]} 25. Bc3 {[%emt 0:02:36]} Bg7 {[%emt 0:01:22]} 26. Qe1 {[%emt 0:02:42]} h5 {[%emt 0:01:11]} 27. h3 {[%emt 0:01:47]} Bxc3 {[%emt 0:06:39]} 28. Qxc3 {[%emt 0:00:06]} Qe7 {[%emt 0:00:20]} 29. Rd1 {[%emt 0:01:17]} f6 {[%emt 0:00:17]} 30. Qb2 {[%emt 0:01:42]} Nf7 {[%emt 0:01:22]} 31. Ne1 {[%emt 0:03:52]} Kg7 {[%emt 0:02:06]} 32. Kh2 {[%emt 0:01:02]} Qc7 {[%emt 0:01:58]} 33. Kg1 {[%emt 0:02:17]} Ng5 {[%emt 0:03:14]} 34. Qd2 {[%emt 0:03:16]} Nxh3+ {[%emt 0:06:31]} 35. Bxh3 {[%emt 0:02:23]} Bxh3 {[%emt 0:00:09]} 36. Qd6 {[%emt 0:00:42]} Qxd6 {[%emt 0:00:11]} 37. Rxd6 {[%emt 0:00:04]} Ra6 {[%emt 0:00:35]} 38. Nc2 {[%emt 0:00:37]} Bg4 {[%emt 0:03:26]} 39. Na3 {[%emt 0:01:13]} a4 {[%emt 0:01:28]} 0-1

[Event "4NCL Div 1 2024-25"]
[Site "England"]
[Date "2024.11.23"]
[Round "1.23"]
[White "Price, Gwilym"]
[Black "Murphy, Hugh W"]
[Result "1-0"]
[Annotator "RC"]
[ECO "B12"]
[WhiteElo "2223"]
[BlackElo "2005"]
[PlyCount "67"]
[EventDate "2024.11.23"]
[EventType "team-tourn"]
[EventCountry "ENG"]
[SourceTitle "playchess.com"]
[Source "ChessBase"]
[SourceQuality "1"]
[TimeControl "40/6000+30:3000+30"]

1. e4 {[%emt 0:10:03]} c6 {[%emt 0:10:16]} 2. d4 {[%emt 0:00:03]} d5 {[%emt 0:00:08]} 3. e5 {[%emt 0:00:04]} Bf5 {[%emt 0:00:50]} 4. Nf3 {[%emt 0:00:14]} e6 {[%emt 0:02:20]} 5. Be2 {[%emt 0:00:10]} Be7 {[%emt 0:02:00]} 6. a4 {[%emt 0:01:40]} h5 {[%emt 0:03:35]} 7. O-O {[%emt 0:04:19]} Nh6 {[%emt 0:01:16]} 8. Na3 {[%emt 0:15:29]} Nd7 {[%emt 0:01:54]} 9. c4 {[%emt 0:01:00]} g5 {[%emt 0:02:21]} 10. Ne1 {[%emt 0:03:02]} h4 {[%emt 0:02:47]} 11. Nec2 {[%emt 0:09:18]} Qc7 {[%emt 0:03:17]} 12. Ne3 {[%emt 0:03:31]} Bg6 {[%emt 0:05:35]} 13. Bd2 {[%emt 0:07:47]} Nf5 {[%emt 0:07:29]} 14. cxd5 {[%emt 0:02:56]} exd5 {[%emt 0:00:41]} 15. Nxf5 {[%emt 0:03:14]} Bxf5 {[%emt 0:00:07]} 16. f4 {[%emt 0:00:16]} gxf4 {[%emt 0:01:35]} 17. Bxf4 {[%emt 0:01:14]} Be6 {[%emt 0:01:16]} 18. Qd2 {[%emt 0:02:24]} O-O-O {[%emt 0:03:21]} 19. b4 {[%emt 0:05:38]} Rdg8 {[%emt 0:09:48]} 20. Nb5 {[%emt 0:05:59]} Qb8 {[%emt 0:02:11]} 21. Nd6+ {[%emt 0:00:39]} Bxd6 {[%emt 0:00:18]} 22. exd6 {[%emt 0:00:02]} Rg6 {[%emt 0:10:07]} 23. Kh1 {[%emt 0:03:05]} Rhg8 {[%emt 0:00:16]} 24. Rf2 {[%emt 0:01:17]} Kd8 {[%emt 0:04:05]} 25. Bd3 {[%emt 0:02:01]} Rg4 {[%emt 0:06:09]} 26. Rc1 {[%emt 0:05:19]} Nb6 {[%emt 0:06:39]} 27. b5 {[%emt 0:06:33]} Nc4 {[%emt 0:00:35]} 28. Bxc4 {[%emt 0:09:16]} dxc4 {[%emt 0:00:08]} 29. h3 {[%emt 0:00:22]} R4g6 {[%emt 0:01:01]} 30. d7 {[%emt 0:00:40]} Qa8 {[%emt 0:00:08]} 31. bxc6 {[%emt 0:00:54]} c3 {[%emt 0:06:23]} 32. Qxc3 {[%emt 0:01:04]} b6 {[%emt 0:17:54]} 33. Qf3 {[%emt 0:03:37]} Rf6 {[%emt 0:00:00]} 34. Bg5 {[%emt 0:00:31]} 1-0

[Event "4NCL Div 1 2024-25"]
[Site "England"]
[Date "2024.11.23"]
[Round "1.24"]
[White "McCarthy, Kevin C"]
[Black "Purton, Ben J"]
[Result "1/2-1/2"]
[Annotator "RC"]
[ECO "A34"]
[WhiteElo "1954"]
[BlackElo "2179"]
[PlyCount "32"]
[EventDate "2024.11.23"]
[EventType "team-tourn"]
[EventCountry "ENG"]
[SourceTitle "playchess.com"]
[Source "ChessBase"]
[SourceQuality "1"]
[TimeControl "40/6000+30:3000+30"]

1. c4 {[%emt 0:10:04]} c5 {[%emt 0:10:03]} 2. g3 {[%emt 0:00:09]} Nf6 {[%emt 0:00:04]} 3. Bg2 {[%emt 0:00:04]} d5 {[%emt 0:01:08]} 4. cxd5 {[%emt 0:00:20]} Nxd5 {[%emt 0:00:05]} 5. Nc3 {[%emt 0:00:08]} Nxc3 {[%emt 0:00:32]} 6. bxc3 {[%emt 0:00:14]} Nc6 {[%emt 0:00:25]} 7. Nf3 {[%emt 0:00:08]} e5 {[%emt 0:00:12]} 8. d3 {[%emt 0:00:32]} Be7 {[%emt 0:00:17]} 9. O-O {[%emt 0:00:33]} O-O {[%emt 0:00:17]} 10. Qc2 {[%emt 0:00:33]} Be6 {[%emt 0:00:39]} 11. a4 {[%emt 0:01:11]} f6 {[%emt 0:00:53]} 12. Ba3 {[%emt 0:01:07]} Rc8 {[%emt 0:00:36]} 13. Rfd1 {[%emt 0:00:55]} Qd7 {[%emt 0:01:16]} 14. Rab1 {[%emt 0:01:09]} Rfd8 {[%emt 0:01:01]} 15. Nd2 {[%emt 0:07:50]} b6 {[%emt 0:00:25]} 16. Nf1 {[%emt 0:01:35]} Nb4 {[%emt 0:01:33]} 1/2-1/2

[Event "4NCL Div 1 2024-25"]
[Site "England"]
[Date "2024.11.23"]
[Round "1.25"]
[White "Kovchan, Alexander"]
[Black "Pert, Nicholas"]
[Result "1/2-1/2"]
[Annotator "TA"]
[ECO "B32"]
[WhiteElo "2453"]
[BlackElo "2527"]
[PlyCount "27"]
[EventDate "2024.11.23"]
[EventType "team-tourn"]
[EventCountry "ENG"]
[SourceTitle "playchess.com"]
[Source "ChessBase"]
[SourceQuality "1"]
[TimeControl "40/6000+30:3000+30"]

{[%evp 14,27,13,27,32,29,36,36,18,37,31,29,36,33,25,-6]} 1. e4 {[%emt 0:10:05]} c5 {[%emt 0:10:11]} 2. Nf3 {[%emt 0:00:09][%cal Bg1f3,Bf3d4,Bd4b5][%mdl 32]} Nc6 {[%emt 0:00:06]} 3. d4 {[%emt 0:00:14]} cxd4 {[%emt 0:00:05]} 4. Nxd4 {[%emt 0:00:05]} e5 {[%emt 0:00:20]} 5. Nb5 {[%emt 0:00:12]} d6 {[%emt 0:00:13]} 6. c4 {[%emt 0:00:23]} Be6 {[%emt 0:01:14]} 7. N1c3 {[%emt 0:02:08]} a6 {[%emt 0:00:51]} 8. Na3 {[%emt 0:00:10]} g6 {[%emt 0:02:32]} 9. Nd5 {[%emt 0:07:23]} Bg7 {[%emt 0:05:40]} 10. Be3 {[%emt 0:02:55]} Nd4 {[%emt 0:03:02]} 11. Qa4+ {[%emt 0:09:54]} Bd7 {[%emt 0:06:31]} 12. Qb4 {[%emt 0:03:11][%csl LRb7,LRd6]} Bc6 {[%emt 0:00:48]} 13. Bd3 {[%emt 0:04:26]} Nf6 {[%emt 0:09:42]} 14. Nc2 {[%emt 0:08:32] Weighted Error Value: White=0.00 (flawless) /Black=0.02 (flawless) .  Inaccurate:     	White=1     	---        OK:         	White=3     	Black=4} 1/2-1/2